[Event "29. Klatovy C 2023"]
[Site "Klatovy"]
[Date "2023.07.05"]
[Round "5.7"]
[White "Petras, Milan"]
[Black "Truksa, Vaclav"]
[Result "1-0"]
[ECO "E81"]
[WhiteElo "1866"]
[BlackElo "1725"]
[PlyCount "35"]
[EventDate "2023.07.01"]
[EventType "swiss"]
[EventRounds "9"]
[EventCountry "CZE"]
[TimeControl "120+30"]

1. c4 {[%emt 0:05:53]} Nf6 {[%emt 0:00:17]} 2. d4 {[%emt 0:01:03]} g6 {[%emt 0:00:13]} 3. Nc3 {[%emt 0:00:38]} Bg7 {[%emt 0:00:16]} 4. e4 {[%emt 0:01:19]} d6 {[%emt 0:00:17]} 5. f3 {[%emt 0:01:12]} O-O {[%emt 0:00:29]} 6. Be3 {[%emt 0:00:23]} c6 {[%emt 0:03:18]} 7. Qd2 {[%emt 0:01:25]} Bd7 {[%emt 0:01:35]} 8. g4 {[%emt 0:01:15]} b5 {[%emt 0:04:21]} 9. h4 {[%emt 0:02:32]} h5 {[%emt 0:00:49]} 10. Bh6 {[%emt 0:08:08]} bxc4 {[%emt 0:00:30]} 11. e5 {[%emt 0:19:31]} Ne8 {[%emt 0:08:02]} 12. Bxc4 {[%emt 0:05:36]} Be6 {[%emt 0:05:15]} 13. Bxe6 {[%emt 0:06:55]} fxe6 {[%emt 0:00:30]} 14. gxh5 {[%emt 0:04:36]} dxe5 {[%emt 0:01:15]} 15. Bxg7 {[%emt 0:15:31]} Kxg7 {[%emt 0:01:57]} 16. Qg5 {[%emt 0:08:08]} Qxd4 {[%emt 0:04:09]} 17. Qxg6+ {[%emt 0:08:37]} Kh8 {[%emt 0:00:35]} 18. Nge2 {[%emt 0:00:32]} 1-0

[Event "29. Klatovy C 2023"]
[Site "Klatovy"]
[Date "2023.07.05"]
[Round "5.8"]
[White "Sibl, Vaclav"]
[Black "Vachal, Josef"]
[Result "1/2-1/2"]
[ECO "A45"]
[WhiteElo "1840"]
[BlackElo "1762"]
[PlyCount "97"]
[EventDate "2023.07.01"]
[EventType "swiss"]
[EventRounds "9"]
[EventCountry "CZE"]
[TimeControl "120+30"]

1. d4 {[%emt 0:00:35]} Nf6 {[%emt 0:00:14]} 2. Bf4 {[%emt 0:00:26]} g6 {[%emt 0:00:45]} 3. Nc3 {[%emt 0:00:16]} d5 {[%emt 0:01:27]} 4. e3 {[%emt 0:00:28]} Bg7 {[%emt 0:03:15]} 5. h4 {[%emt 0:01:48]} O-O {[%emt 0:07:12]} 6. h5 {[%emt 0:00:58]} Bf5 {[%emt 0:20:02]} 7. hxg6 {[%emt 0:01:54]} Bxg6 {[%emt 0:02:12]} 8. Nf3 {[%emt 0:03:40]} Nbd7 {[%emt 0:12:45]} 9. Be2 {[%emt 0:01:55]} Re8 {[%emt 0:10:32]} 10. Ne5 {[%emt 0:00:45]} Nxe5 {[%emt 0:01:26]} 11. Bxe5 {[%emt 0:01:16]} Ne4 {[%emt 0:02:18]} 12. Bxg7 {[%emt 0:01:08]} Nxc3 {[%emt 0:00:48]} 13. bxc3 {[%emt 0:00:24]} Kxg7 {[%emt 0:00:12]} 14. f4 {[%emt 0:11:04]} f5 {[%emt 0:18:40]} 15. Bd3 {[%emt 0:02:58]} e6 {[%emt 0:00:18]} 16. Qf3 {[%emt 0:00:58]} Re7 {[%emt 0:04:49]} 17. Qh3 {[%emt 0:03:30]} Kg8 {[%emt 0:03:11]} 18. Qh6 {[%emt 0:06:36]} Qf8 {[%emt 0:01:13]} 19. Qg5 {[%emt 0:00:20]} Rg7 {[%emt 0:00:16]} 20. Rh2 {[%emt 0:01:34]} Qe7 {[%emt 0:04:12]} 21. Qxe7 {[%emt 0:08:54]} Rxe7 {[%emt 0:00:02]} 22. c4 {[%emt 0:00:17]} c6 {[%emt 0:00:44]} 23. Kd2 {[%emt 0:00:53]} Be8 {[%emt 0:07:01]} 24. Rah1 {[%emt 0:00:28]} Rg7 {[%emt 0:02:08]} 25. cxd5 {[%emt 0:03:47]} cxd5 {[%emt 0:00:23]} 26. c4 {[%emt 0:00:01]} Bc6 {[%emt 0:01:57]} 27. c5 {[%emt 0:01:45]} Re8 {[%emt 0:02:44]} 28. Ke2 {[%emt 0:02:05]} Ree7 {[%emt 0:00:10]} 29. Kf2 {[%emt 0:00:15]} Rg6 {[%emt 0:01:30]} 30. Rh6 {[%emt 0:03:07]} Rxh6 {[%emt 0:03:15]} 31. Rxh6 {[%emt 0:00:02]} Be8 {[%emt 0:01:24]} 32. Rh4 {[%emt 0:01:31]} Rg7 {[%emt 0:01:00]} 33. Be2 {[%emt 0:02:22]} b6 {[%emt 0:01:37]} 34. cxb6 {[%emt 0:00:17]} axb6 {[%emt 0:00:05]} 35. g4 {[%emt 0:00:24]} Ra7 {[%emt 0:00:35]} 36. gxf5 {[%emt 0:00:35]} exf5 {[%emt 0:01:45]} 37. Rh6 {[%emt 0:04:49]} Bg6 {[%emt 0:00:14]} 38. Bf3 {[%emt 0:02:34]} Rxa2+ {[%emt 0:00:06]} 39. Kg3 {[%emt 0:01:04]} Ra5 {[%emt 0:00:53]} 40. Rh1 {[%emt 0:01:09]} Rb5 {[%emt 0:01:11]} 41. Rc1 {[%emt 0:01:14]} Kg7 {[%emt 0:00:44]} 42. Rc7+ {[%emt 0:01:30]} Kf6 {[%emt 0:00:45]} 43. Rb7 {[%emt 0:04:20]} Ke6 {[%emt 0:01:36]} 44. Rb8 {[%emt 0:03:26]} Kd7 {[%emt 0:01:28]} 45. Rb7+ {[%emt 0:01:41]} Kc6 {[%emt 0:00:48]} 46. Re7 {[%emt 0:00:17]} Kd6 {[%emt 0:01:35]} 47. Re5 {[%emt 0:00:49]} Ra5 {[%emt 0:00:29]} 48. Kh4 {[%emt 0:00:18]} Rb5 {[%emt 0:02:48]} 49. Kg5 {[%emt 0:00:44]} 1/2-1/2

[Event "29. Klatovy C 2023"]
[Site "Klatovy"]
[Date "2023.07.01"]
[Round "1.1"]
[White "Pribyl, Josef"]
[Black "Prachar, Josef"]
[Result "1-0"]
[ECO "B38"]
[WhiteElo "2230"]
[BlackElo "1732"]
[PlyCount "99"]
[EventDate "2023.07.01"]
[EventType "swiss"]
[EventRounds "9"]
[EventCountry "CZE"]
[TimeControl "120+30"]

1. c4 {[%emt 0:00:08]} Nf6 {[%emt 0:00:24]} 2. Nc3 {[%emt 0:00:09]} g6 {[%emt 0:00:29]} 3. e4 {[%emt 0:00:43]} d6 {[%emt 0:00:14]} 4. d4 {[%emt 0:00:11]} Bg7 {[%emt 0:00:19]} 5. f4 {[%emt 0:00:12]} O-O {[%emt 0:00:35]} 6. Nf3 {[%emt 0:00:09]} c5 {[%emt 0:00:56]} 7. Be2 {[%emt 0:02:11]} cxd4 {[%emt 0:02:09]} 8. Nxd4 {[%emt 0:00:03]} Nc6 {[%emt 0:03:33]} 9. Be3 {[%emt 0:00:03]} a6 {[%emt 0:01:08]} 10. O-O {[%emt 0:00:26]} e5 {[%emt 0:02:32]} 11. Nxc6 {[%emt 0:02:12]} bxc6 {[%emt 0:00:12]} 12. fxe5 {[%emt 0:00:03]} dxe5 {[%emt 0:00:24]} 13. Qxd8 {[%emt 0:00:43]} Rxd8 {[%emt 0:00:10]} 14. Bg5 {[%emt 0:00:18]} Rd6 {[%emt 0:09:14]} 15. c5 {[%emt 0:00:02]} Re6 {[%emt 0:00:09]} 16. Bc4 {[%emt 0:00:28]} h6 {[%emt 0:02:37]} 17. Bxe6 {[%emt 0:00:11]} hxg5 {[%emt 0:00:16]} 18. Bxc8 {[%emt 0:01:04]} Rxc8 {[%emt 0:00:15]} 19. Rad1 {[%emt 0:00:24]} Kf8 {[%emt 0:03:10]} 20. Rd6 {[%emt 0:05:30]} Ke7 {[%emt 0:00:36]} 21. b3 {[%emt 0:02:55]} Ne8 {[%emt 0:03:03]} 22. Rd3 {[%emt 0:01:08]} Nc7 {[%emt 0:06:59]} 23. Na4 {[%emt 0:09:30]} Ne6 {[%emt 0:03:16]} 24. Kf2 {[%emt 0:06:10]} Rh8 {[%emt 0:06:54]} 25. h3 {[%emt 0:01:08]} Rh4 {[%emt 0:00:50]} 26. Re1 {[%emt 0:02:18]} Nd4 {[%emt 0:05:59]} 27. Rg3 {[%emt 0:05:48]} f6 {[%emt 0:07:07]} 28. Nc3 {[%emt 0:03:32]} Ke6 {[%emt 0:03:00]} 29. Rd3 {[%emt 0:05:32]} Bf8 {[%emt 0:02:34]} 30. Na4 {[%emt 0:00:02]} Be7 {[%emt 0:01:17]} 31. Rd2 {[%emt 0:06:18]} Rh8 {[%emt 0:07:24]} 32. Re3 {[%emt 0:01:48]} Rb8 {[%emt 0:00:59]} 33. g4 {[%emt 0:02:01]} Rb5 {[%emt 0:01:35]} 34. Rc3 {[%emt 0:00:03]} Bd8 {[%emt 0:00:29]} 35. Rc4 {[%emt 0:01:45]} Be7 {[%emt 0:03:25]} 36. Kg3 {[%emt 0:02:01]} Bf8 {[%emt 0:03:30]} 37. Kf2 {[%emt 0:02:13]} Be7 {[%emt 0:01:59]} 38. Ke3 {[%emt 0:06:02]} Rb8 {[%emt 0:02:46]} 39. Rh2 {[%emt 0:00:05]} Rh8 {[%emt 0:02:16]} 40. Nb2 {[%emt 0:04:16]} Kd7 {[%emt 0:05:43]} 41. Nd3 {[%emt 0:00:31]} Kc7 {[%emt 0:01:37]} 42. Kf2 {[%emt 0:03:54]} Kb7 {[%emt 0:04:21]} 43. Kg3 {[%emt 0:00:25]} Ne6 {[%emt 0:03:08]} 44. Rb4+ {[%emt 0:02:38]} Kc7 {[%emt 0:00:42]} 45. Rb6 {[%emt 0:00:55]} Nxc5 {[%emt 0:09:19]} 46. Nxc5 {[%emt 0:00:02]} Bxc5 {[%emt 0:00:14]} 47. Rxa6 {[%emt 0:00:09]} Kb7 {[%emt 0:00:31]} 48. Ra4 {[%emt 0:00:15]} Rd8 {[%emt 0:00:14]} 49. Rc2 {[%emt 0:00:24]} Rd3+ {[%emt 0:00:42]} 50. Kg2 {[%emt 0:00:08]} 1-0

[Event "29. Klatovy C 2023"]
[Site "Klatovy"]
[Date "2023.07.01"]
[Round "1.2"]
[White "Truksa, Vaclav"]
[Black "Mlynek, Petr"]
[Result "1/2-1/2"]
[ECO "D48"]
[WhiteElo "1725"]
[BlackElo "2035"]
[PlyCount "113"]
[EventDate "2023.07.01"]
[EventType "swiss"]
[EventRounds "9"]
[EventCountry "CZE"]
[TimeControl "120+30"]

1. d4 {[%emt 0:00:30]} d5 {[%emt 0:00:32]} 2. c4 {[%emt 0:00:13]} c6 {[%emt 0:00:11]} 3. e3 {[%emt 0:00:38]} Nf6 {[%emt 0:00:14]} 4. Nc3 {[%emt 0:00:16]} e6 {[%emt 0:00:18]} 5. Nf3 {[%emt 0:00:28]} Nbd7 {[%emt 0:00:18]} 6. Bd3 {[%emt 0:00:16]} dxc4 {[%emt 0:00:15]} 7. Bxc4 {[%emt 0:00:11]} b5 {[%emt 0:00:06]} 8. Bd3 {[%emt 0:00:25]} a6 {[%emt 0:00:14]} 9. O-O {[%emt 0:02:08]} c5 {[%emt 0:01:30]} 10. b3 {[%emt 0:04:30]} Bb7 {[%emt 0:01:16]} 11. Bb2 {[%emt 0:00:41]} Be7 {[%emt 0:01:46]} 12. Rc1 {[%emt 0:02:11]} cxd4 {[%emt 0:02:26]} 13. exd4 {[%emt 0:01:56]} O-O {[%emt 0:01:09]} 14. Re1 {[%emt 0:00:21]} Rc8 {[%emt 0:04:02]} 15. Bb1 {[%emt 0:00:47]} Nb6 {[%emt 0:01:58]} 16. Ne4 {[%emt 0:05:48]} Bb4 {[%emt 0:05:39]} 17. Rxc8 {[%emt 0:00:45]} Qxc8 {[%emt 0:03:21]} 18. Nxf6+ {[%emt 0:01:13]} gxf6 {[%emt 0:00:07]} 19. Re3 {[%emt 0:02:55]} Nd5 {[%emt 0:00:32]} 20. Rd3 {[%emt 0:02:26]} Kh8 {[%emt 0:03:29]} 21. Nh4 {[%emt 0:00:34]} Rg8 {[%emt 0:02:30]} 22. Rg3 {[%emt 0:01:04]} Bd6 {[%emt 0:02:30]} 23. Rxg8+ {[%emt 0:04:53]} Qxg8 {[%emt 0:00:10]} 24. Qh5 {[%emt 0:02:41]} Nf4 {[%emt 0:01:37]} 25. Qh6 {[%emt 0:01:15]} Qg7 {[%emt 0:04:14]} 26. Qxg7+ {[%emt 0:00:18]} Kxg7 {[%emt 0:00:02]} 27. f3 {[%emt 0:01:50]} b4 {[%emt 0:03:24]} 28. Kf2 {[%emt 0:00:31]} Bc6 {[%emt 0:09:37]} 29. g3 {[%emt 0:00:31]} Nd5 {[%emt 0:00:56]} 30. Ng2 {[%emt 0:02:50]} h5 {[%emt 0:03:04]} 31. Ne3 {[%emt 0:02:17]} Nxe3 {[%emt 0:07:46]} 32. Kxe3 {[%emt 0:00:16]} h4 {[%emt 0:00:49]} 33. f4 {[%emt 0:00:54]} hxg3 {[%emt 0:00:27]} 34. hxg3 {[%emt 0:00:10]} Bb5 {[%emt 0:10:07]} 35. Be4 {[%emt 0:05:09]} f5 {[%emt 0:12:37]} 36. Bf3 {[%emt 0:01:08]} f6 {[%emt 0:01:14]} 37. Bb7 {[%emt 0:03:34]} Kf7 {[%emt 0:00:36]} 38. Bf3 {[%emt 0:00:21]} Ke7 {[%emt 0:01:25]} 39. Bh5 {[%emt 0:01:14]} Bc7 {[%emt 0:00:49]} 40. g4 {[%emt 0:04:25]} fxg4 {[%emt 0:00:52]} 41. Bxg4 {[%emt 0:00:13]} f5 {[%emt 0:00:14]} 42. Bf3 {[%emt 0:00:21]} Bb6 {[%emt 0:00:38]} 43. Bh5 {[%emt 0:01:04]} Kd6 {[%emt 0:03:19]} 44. Bf3 {[%emt 0:00:43]} a5 {[%emt 0:00:39]} 45. Bd1 {[%emt 0:05:08]} Bc6 {[%emt 0:00:24]} 46. Bc2 {[%emt 0:02:11]} Bd5 {[%emt 0:00:23]} 47. a3 {[%emt 0:00:57]} Kc6 {[%emt 0:06:43]} 48. a4 {[%emt 0:00:45]} Bd8 {[%emt 0:02:02]} 49. Bc1 {[%emt 0:01:40]} Bh4 {[%emt 0:00:17]} 50. Bd2 {[%emt 0:02:29]} Bg3 {[%emt 0:00:24]} 51. Bd1 {[%emt 0:02:58]} Kd6 {[%emt 0:00:45]} 52. Bc2 {[%emt 0:00:23]} Ke7 {[%emt 0:00:09]} 53. Ke2 {[%emt 0:01:05]} Kf6 {[%emt 0:00:26]} 54. Ke3 {[%emt 0:00:58]} Kg6 {[%emt 0:00:24]} 55. Bd1 {[%emt 0:01:39]} Kh6 {[%emt 0:00:11]} 56. Bc1 {[%emt 0:01:01]} Be1 {[%emt 0:07:23]} 57. Bd2 {[%emt 0:00:02]} 1/2-1/2

[Event "29. Klatovy C 2023"]
[Site "Klatovy"]
[Date "2023.07.01"]
[Round "1.3"]
[White "Korsa, Jindrich"]
[Black "Berka, Lubos"]
[Result "1-0"]
[ECO "B15"]
[WhiteElo "1997"]
[BlackElo "1715"]
[PlyCount "51"]
[EventDate "2023.07.01"]
[EventType "swiss"]
[EventRounds "9"]
[EventCountry "CZE"]
[TimeControl "120+30"]

1. e4 {[%emt 0:00:36]} c6 {[%emt 0:00:20]} 2. Nc3 {[%emt 0:00:21]} d5 {[%emt 0:00:12]} 3. d4 {[%emt 0:00:46]} dxe4 {[%emt 0:00:08]} 4. Nxe4 {[%emt 0:00:06]} Nf6 {[%emt 0:00:07]} 5. Nxf6+ {[%emt 0:00:26]} exf6 {[%emt 0:00:06]} 6. c3 {[%emt 0:00:35]} Be6 {[%emt 0:01:44]} 7. Bd3 {[%emt 0:00:23]} c5 {[%emt 0:02:13]} 8. Be3 {[%emt 0:02:42]} cxd4 {[%emt 0:01:25]} 9. Bxd4 {[%emt 0:00:12]} Nc6 {[%emt 0:01:28]} 10. Qa4 {[%emt 0:02:51]} Bd5 {[%emt 0:04:06]} 11. f3 {[%emt 0:02:52]} Be7 {[%emt 0:06:35]} 12. Ne2 {[%emt 0:02:24]} O-O {[%emt 0:01:04]} 13. O-O-O {[%emt 0:06:26]} a6 {[%emt 0:03:07]} 14. Bf2 {[%emt 0:01:44]} Rc8 {[%emt 0:10:36]} 15. Bf5 {[%emt 0:11:21]} Qd6 {[%emt 0:03:47]} 16. Qf4 {[%emt 0:08:59]} Rcd8 {[%emt 0:04:38]} 17. Qxd6 {[%emt 0:03:43]} Rxd6 {[%emt 0:00:19]} 18. Bc5 {[%emt 0:00:16]} Rfd8 {[%emt 0:01:02]} 19. Bxd6 {[%emt 0:00:06]} Rxd6 {[%emt 0:00:09]} 20. Be4 {[%emt 0:01:41]} Bxa2 {[%emt 0:05:19]} 21. Rxd6 {[%emt 0:00:11]} Bxd6 {[%emt 0:00:08]} 22. Rd1 {[%emt 0:00:38]} Be7 {[%emt 0:01:40]} 23. Rd7 {[%emt 0:00:31]} Kf8 {[%emt 0:00:27]} 24. Rxb7 {[%emt 0:00:09]} Nd8 {[%emt 0:01:32]} 25. Rb8 {[%emt 0:02:19]} Bc4 {[%emt 0:00:38]} 26. Nd4 {[%emt 0:00:15]} 1-0

[Event "29. Klatovy C 2023"]
[Site "Klatovy"]
[Date "2023.07.01"]
[Round "1.4"]
[White "Macho, Miloslav"]
[Black "Chalus, Karel"]
[Result "0-1"]
[ECO "C90"]
[WhiteElo "1705"]
[BlackElo "1975"]
[PlyCount "96"]
[EventDate "2023.07.01"]
[EventType "swiss"]
[EventRounds "9"]
[EventCountry "CZE"]
[TimeControl "120+30"]

1. e4 {[%emt 0:05:19]} e5 {[%emt 0:00:06]} 2. Nf3 {[%emt 0:00:04]} Nc6 {[%emt 0:00:04]} 3. Bb5 {[%emt 0:00:06]} a6 {[%emt 0:00:05]} 4. Ba4 {[%emt 0:00:06]} Nf6 {[%emt 0:00:04]} 5. d3 {[%emt 0:00:31]} b5 {[%emt 0:04:19]} 6. Bb3 {[%emt 0:00:10]} Be7 {[%emt 0:00:15]} 7. c3 {[%emt 0:00:27]} O-O {[%emt 0:00:21]} 8. O-O {[%emt 0:00:10]} d6 {[%emt 0:04:28]} 9. Re1 {[%emt 0:03:20]} Na5 {[%emt 0:04:14]} 10. Bc2 {[%emt 0:00:57]} c5 {[%emt 0:02:55]} 11. Nbd2 {[%emt 0:02:20]} Ne8 {[%emt 0:16:40]} 12. Nf1 {[%emt 0:02:05]} f5 {[%emt 0:16:03]} 13. exf5 {[%emt 0:02:35]} Bxf5 {[%emt 0:02:27]} 14. h3 {[%emt 0:07:31]} Nc7 {[%emt 0:05:32]} 15. Ng3 {[%emt 0:07:34]} Bg6 {[%emt 0:12:20]} 16. d4 {[%emt 0:07:42]} Bxc2 {[%emt 0:03:16]} 17. Qxc2 {[%emt 0:00:06]} exd4 {[%emt 0:02:41]} 18. cxd4 {[%emt 0:00:16]} c4 {[%emt 0:10:29]} 19. Bd2 {[%emt 0:11:01]} Nc6 {[%emt 0:02:39]} 20. d5 {[%emt 0:10:10]} Ne5 {[%emt 0:01:14]} 21. Nxe5 {[%emt 0:03:30]} dxe5 {[%emt 0:01:51]} 22. Rxe5 {[%emt 0:03:16]} Bd6 {[%emt 0:06:33]} 23. Rg5 {[%emt 0:04:06]} Be7 {[%emt 0:06:08]} 24. Rh5 {[%emt 0:18:06]} g6 {[%emt 0:01:04]} 25. Re5 {[%emt 0:08:07]} Bf6 {[%emt 0:00:18]} 26. Re2 {[%emt 0:01:11]} Nxd5 {[%emt 0:00:51]} 27. Rd1 {[%emt 0:01:10]} Qb6 {[%emt 0:05:54]} 28. Bh6 {[%emt 0:02:28]} Nb4 {[%emt 0:01:14]} 29. Qe4 {[%emt 0:01:47]} Rfd8 {[%emt 0:00:17]} 30. Rxd8+ {[%emt 0:03:20]} Rxd8 {[%emt 0:00:04]} 31. b3 {[%emt 0:02:09]} Nxa2 {[%emt 0:03:21]} 32. bxc4 {[%emt 0:05:25]} Nc3 {[%emt 0:00:15]} 33. Qe6+ {[%emt 0:00:55]} Qxe6 {[%emt 0:00:05]} 34. Rxe6 {[%emt 0:00:04]} Bd4 {[%emt 0:02:12]} 35. cxb5 {[%emt 0:05:39]} axb5 {[%emt 0:00:59]} 36. Ne4 {[%emt 0:02:12]} Nxe4 {[%emt 0:03:56]} 37. Rxe4 {[%emt 0:00:03]} b4 {[%emt 0:00:20]} 38. Bg5 {[%emt 0:04:43]} Rd7 {[%emt 0:00:29]} 39. Re8+ {[%emt 0:01:41]} Kf7 {[%emt 0:00:24]} 40. Rb8 {[%emt 0:00:49]} Bc3 {[%emt 0:00:41]} 41. g3 {[%emt 0:02:28]} Ke6 {[%emt 0:00:27]} 42. Be3 {[%emt 0:02:11]} Kd5 {[%emt 0:00:45]} 43. Kf1 {[%emt 0:01:08]} Kc4 {[%emt 0:00:33]} 44. Rc8+ {[%emt 0:01:04]} Kd3 {[%emt 0:00:18]} 45. Rb8 {[%emt 0:01:26]} Kc2 {[%emt 0:00:19]} 46. Bc5 {[%emt 0:00:57]} b3 {[%emt 0:00:12]} 47. Re8 {[%emt 0:00:39]} b2 {[%emt 0:00:38]} 48. Re2+ {[%emt 0:00:38]} Rd2 {[%emt 0:00:20]} 0-1

[Event "29. Klatovy C 2023"]
[Site "Klatovy"]
[Date "2023.07.01"]
[Round "1.5"]
[White "Turner, Radek"]
[Black "Vavrinek, Tomas"]
[Result "1-0"]
[ECO "A53"]
[WhiteElo "1991"]
[BlackElo "1698"]
[PlyCount "135"]
[EventDate "2023.07.01"]
[EventType "swiss"]
[EventRounds "9"]
[EventCountry "CZE"]
[TimeControl "120+30"]

1. c4 {[%emt 0:00:07]} e5 {[%emt 0:00:19]} 2. g3 {[%emt 0:00:07]} Nf6 {[%emt 0:01:06]} 3. Bg2 {[%emt 0:00:05]} c6 {[%emt 0:01:56]} 4. Nc3 {[%emt 0:00:16]} Be7 {[%emt 0:03:18]} 5. e3 {[%emt 0:00:26]} O-O {[%emt 0:01:15]} 6. Nge2 {[%emt 0:00:20]} d6 {[%emt 0:07:25]} 7. d4 {[%emt 0:00:52]} exd4 {[%emt 0:02:17]} 8. Nxd4 {[%emt 0:00:14]} Qb6 {[%emt 0:07:33]} 9. O-O {[%emt 0:02:26]} Nbd7 {[%emt 0:01:40]} 10. Nf5 {[%emt 0:00:21]} Re8 {[%emt 0:08:32]} 11. Nxe7+ {[%emt 0:01:10]} Rxe7 {[%emt 0:00:09]} 12. Qxd6 {[%emt 0:00:10]} Qc5 {[%emt 0:07:25]} 13. Qxc5 {[%emt 0:01:37]} Nxc5 {[%emt 0:00:07]} 14. b3 {[%emt 0:00:11]} Nce4 {[%emt 0:04:29]} 15. Nxe4 {[%emt 0:00:49]} Nxe4 {[%emt 0:00:07]} 16. Ba3 {[%emt 0:01:41]} Re8 {[%emt 0:00:00]} 17. Rfd1 {[%emt 0:01:21]} Bf5 {[%emt 0:01:57]} 18. Bb2 {[%emt 0:00:41]} Rad8 {[%emt 0:03:16]} 19. f3 {[%emt 0:00:58]} Ng5 {[%emt 0:05:45]} 20. e4 {[%emt 0:00:59]} Bg6 {[%emt 0:02:16]} 21. Kf2 {[%emt 0:01:36]} f6 {[%emt 0:04:08]} 22. h4 {[%emt 0:01:51]} Nf7 {[%emt 0:02:59]} 23. Rd4 {[%emt 0:05:05]} Rxd4 {[%emt 0:04:12]} 24. Bxd4 {[%emt 0:00:09]} b6 {[%emt 0:01:07]} 25. Bc3 {[%emt 0:01:46]} Rd8 {[%emt 0:01:29]} 26. Ke2 {[%emt 0:00:20]} Kf8 {[%emt 0:01:08]} 27. Rd1 {[%emt 0:00:16]} Rxd1 {[%emt 0:00:52]} 28. Kxd1 {[%emt 0:00:06]} Ke7 {[%emt 0:00:19]} 29. Kd2 {[%emt 0:00:14]} Kd6 {[%emt 0:01:11]} 30. f4 {[%emt 0:00:48]} Bh5 {[%emt 0:05:37]} 31. Bh3 {[%emt 0:00:26]} Bf3 {[%emt 0:01:23]} 32. Ke3 {[%emt 0:00:22]} Bd1 {[%emt 0:00:36]} 33. b4 {[%emt 0:02:22]} Bc2 {[%emt 0:05:43]} 34. g4 {[%emt 0:01:12]} Bb1 {[%emt 0:02:00]} 35. a3 {[%emt 0:00:11]} Ba2 {[%emt 0:01:07]} 36. Bf1 {[%emt 0:00:09]} c5 {[%emt 0:04:08]} 37. g5 {[%emt 0:01:02]} fxg5 {[%emt 0:00:53]} 38. hxg5 {[%emt 0:00:10]} g6 {[%emt 0:00:41]} 39. Bd3 {[%emt 0:03:46]} Bb3 {[%emt 0:03:04]} 40. Bg7 {[%emt 0:01:07]} Ke7 {[%emt 0:07:48]} 41. Bf6+ {[%emt 0:00:42]} Kd6 {[%emt 0:00:19]} 42. Kd2 {[%emt 0:00:37]} Ke6 {[%emt 0:02:11]} 43. Kc3 {[%emt 0:01:28]} Bd1 {[%emt 0:00:25]} 44. f5+ {[%emt 0:01:11]} gxf5 {[%emt 0:01:37]} 45. exf5+ {[%emt 0:00:13]} Kd7 {[%emt 0:01:18]} 46. g6 {[%emt 0:00:36]} hxg6 {[%emt 0:00:40]} 47. fxg6 {[%emt 0:00:24]} Nh6 {[%emt 0:00:18]} 48. bxc5 {[%emt 0:00:44]} bxc5 {[%emt 0:00:15]} 49. Bg5 {[%emt 0:00:48]} Ng8 {[%emt 0:00:50]} 50. Be4 {[%emt 0:01:05]} Bg4 {[%emt 0:00:53]} 51. g7 {[%emt 0:00:24]} Be6 {[%emt 0:01:15]} 52. Bd5 {[%emt 0:00:18]} a5 {[%emt 0:04:10]} 53. Kb3 {[%emt 0:01:40]} a4+ {[%emt 0:02:31]} 54. Kc3 {[%emt 0:00:53]} Kd6 {[%emt 0:00:37]} 55. Be4 {[%emt 0:00:47]} Bd7 {[%emt 0:02:43]} 56. Bh7 {[%emt 0:00:31]} Be6 {[%emt 0:00:12]} 57. Bf4+ {[%emt 0:00:20]} Ke7 {[%emt 0:00:44]} 58. Bc2 {[%emt 0:00:42]} Bd7 {[%emt 0:00:21]} 59. Be3 {[%emt 0:00:13]} Kd6 {[%emt 0:00:18]} 60. Bg5 {[%emt 0:02:00]} Ke5 {[%emt 0:01:11]} 61. Bg6 {[%emt 0:01:24]} Ke6 {[%emt 0:01:49]} 62. Kd3 {[%emt 0:01:18]} Ke5 {[%emt 0:00:31]} 63. Bf7 {[%emt 0:01:12]} Be6 {[%emt 0:00:16]} 64. Bxe6 {[%emt 0:00:41]} Kxe6 {[%emt 0:00:08]} 65. Ke4 {[%emt 0:00:24]} Kd6 {[%emt 0:01:13]} 66. Kf5 {[%emt 0:00:12]} Kd7 {[%emt 0:00:17]} 67. Ke5 {[%emt 0:00:13]} Ke8 {[%emt 0:01:31]} 68. Ke6 {[%emt 0:02:13]} 1-0

[Event "29. Klatovy C 2023"]
[Site "Klatovy"]
[Date "2023.07.01"]
[Round "1.6"]
[White "Novotny, Jaromir"]
[Black "Baumruk, Josef"]
[Result "0-1"]
[ECO "A01"]
[WhiteElo "1681"]
[BlackElo "1947"]
[PlyCount "58"]
[EventDate "2023.07.01"]
[EventType "swiss"]
[EventRounds "9"]
[EventCountry "CZE"]
[TimeControl "120+30"]

1. b3 {[%emt 0:00:06]} e5 {[%emt 0:00:56]} 2. Bb2 {[%emt 0:00:15]} Nc6 {[%emt 0:00:21]} 3. e3 {[%emt 0:00:12]} Nf6 {[%emt 0:00:49]} 4. Bb5 {[%emt 0:00:22]} d6 {[%emt 0:00:56]} 5. Ne2 {[%emt 0:00:41]} Bd7 {[%emt 0:02:09]} 6. O-O {[%emt 0:01:39]} Be7 {[%emt 0:00:31]} 7. f4 {[%emt 0:02:23]} O-O {[%emt 0:02:39]} 8. Bxc6 {[%emt 0:02:20]} Bxc6 {[%emt 0:00:17]} 9. fxe5 {[%emt 0:00:08]} dxe5 {[%emt 0:00:13]} 10. c4 {[%emt 0:02:48]} Bd6 {[%emt 0:04:58]} 11. Ng3 {[%emt 0:01:42]} Ne4 {[%emt 0:08:36]} 12. Nxe4 {[%emt 0:06:13]} Bxe4 {[%emt 0:00:07]} 13. d3 {[%emt 0:00:23]} Bg6 {[%emt 0:01:30]} 14. e4 {[%emt 0:02:41]} Qg5 {[%emt 0:01:31]} 15. Bc1 {[%emt 0:07:10]} Bc5+ {[%emt 0:02:52]} 16. Kh1 {[%emt 0:00:02]} Qh4 {[%emt 0:02:20]} 17. Nd2 {[%emt 0:00:43]} Rad8 {[%emt 0:02:49]} 18. Nf3 {[%emt 0:01:24]} Qe7 {[%emt 0:00:45]} 19. Bb2 {[%emt 0:04:38]} Bxe4 {[%emt 0:06:50]} 20. Nxe5 {[%emt 0:01:09]} f6 {[%emt 0:03:00]} 21. Ng4 {[%emt 0:01:31]} Rxd3 {[%emt 0:05:36]} 22. Qe2 {[%emt 0:01:07]} Bg6 {[%emt 0:07:49]} 23. Qxe7 {[%emt 0:02:12]} Bxe7 {[%emt 0:00:02]} 24. Nf2 {[%emt 0:03:35]} Rd2 {[%emt 0:00:57]} 25. Bc3 {[%emt 0:00:38]} Rc2 {[%emt 0:00:26]} 26. Bd4 {[%emt 0:02:34]} Rd8 {[%emt 0:05:41]} 27. Be3 {[%emt 0:00:22]} Ba3 {[%emt 0:01:52]} 28. Rad1 {[%emt 0:01:14]} Re8 {[%emt 0:08:34]} 29. Bf4 {[%emt 0:06:25]} Ree2 {[%emt 0:02:45]} 0-1

[Event "29. Klatovy C 2023"]
[Site "Klatovy"]
[Date "2023.07.01"]
[Round "1.7"]
[White "Richter, Martin1"]
[Black "Svec, Ludek"]
[Result "1-0"]
[ECO "B02"]
[WhiteElo "1946"]
[BlackElo "1620"]
[PlyCount "58"]
[EventDate "2023.07.01"]
[EventType "swiss"]
[EventRounds "9"]
[EventCountry "CZE"]
[TimeControl "120+30"]

1. e4 {[%emt 0:00:13]} c5 {[%emt 0:00:10]} 2. Nc3 {[%emt 0:00:12]} e6 {[%emt 0:00:24]} 3. g3 {[%emt 0:00:46]} Nc6 {[%emt 0:00:55]} 4. Bg2 {[%emt 0:00:11]} Nf6 {[%emt 0:00:25]} 5. d3 {[%emt 0:00:12]} Be7 {[%emt 0:02:26]} 6. f4 {[%emt 0:00:27]} d5 {[%emt 0:03:28]} 7. e5 {[%emt 0:01:51]} Nd7 {[%emt 0:00:17]} 8. Nf3 {[%emt 0:00:30]} Rb8 {[%emt 0:01:34]} 9. O-O {[%emt 0:00:51]} O-O {[%emt 0:00:03]} 10. Ne2 {[%emt 0:03:43]} Re8 {[%emt 0:09:18]} 11. g4 {[%emt 0:02:36]} f6 {[%emt 0:05:11]} 12. exf6 {[%emt 0:04:46]} Nxf6 {[%emt 0:01:07]} 13. g5 {[%emt 0:00:45]} Nh5 {[%emt 0:02:11]} 14. Ng3 {[%emt 0:00:23]} Nxg3 {[%emt 0:00:29]} 15. hxg3 {[%emt 0:00:12]} e5 {[%emt 0:04:46]} 16. Nh4 {[%emt 0:01:40]} Nd4 {[%emt 0:10:45]} 17. c3 {[%emt 0:21:03]} Nf5 {[%emt 0:08:08]} 18. Qf3 {[%emt 0:11:38]} e4 {[%emt 0:05:05]} 19. dxe4 {[%emt 0:03:09]} dxe4 {[%emt 0:00:28]} 20. Qxe4 {[%emt 0:24:45]} Nxg3 {[%emt 0:05:01]} 21. Qc4+ {[%emt 0:00:48]} Kh8 {[%emt 0:02:28]} 22. Rf3 {[%emt 0:02:05]} Qd1+ {[%emt 0:12:09]} 23. Kh2 {[%emt 0:00:34]} Qe2 {[%emt 0:04:21]} 24. Qa4 {[%emt 0:10:29]} b5 {[%emt 0:08:50]} 25. Qxa7 {[%emt 0:00:22]} Rb7 {[%emt 0:00:56]} 26. Qa8 {[%emt 0:00:21]} Nh5 {[%emt 0:08:51]} 27. Be3 {[%emt 0:05:08]} g6 {[%emt 0:06:24]} 28. Raf1 {[%emt 0:02:24]} Qxb2 {[%emt 0:05:00]} 29. R3f2 {[%emt 0:05:33]} Qxc3 {[%emt 0:01:01]} 1-0